fUSD/lending_fUSD_20240318
["ID","MTS","AMOUNT","RATE_DAILY","PERIOD"]
[319488305,1710800038094,-754.65,0.00027123,2]
[319488306,1710800038103,-500.0,0.00027123,2]
[319488307,1710800038112,-1183.48,0.00027123,2]
[319488308,1710800038122,-841.06,0.00027123,2]
[319488309,1710800038131,-1050.21,0.00027123,2]
[319488310,1710800038142,-603.24,0.00027123,2]
[319488311,1710800038151,-864.95,0.00027123,2]
[319488312,1710800038160,-801.98,0.00027123,2]
[319488313,1710800038173,-2023.13,0.00027123,2]
[319488314,1710800038183,-2257.25,0.00027123,2]
[319488315,1710800038193,-1080.91,0.00027123,2]
[319488316,1710800038202,-794.11,0.00027123,2]
[319488317,1710800038212,-753.34,0.00027123,2]
[319488318,1710800038222,-509.18397579,0.00027123,2]
[319488319,1710800038231,-841.73,0.00027123,2]
[319488320,1710800038240,-637.28,0.00027123,2]
[319488321,1710800038249,-2219.16,0.00027123,2]
[319488322,1710800038259,-822.95,0.00027123,2]
[319488323,1710800038271,-532.03,0.00027123,2]
[319488324,1710800038280,-500.0,0.00027123,2]
[319488325,1710800038290,-666.77,0.00027123,2]
[319488326,1710800038302,-359.70414873,0.00027123,2]
[319488327,1710800038311,-2410.75,0.00027123,2]
[319488328,1710800038320,-1083.62,0.00027123,2]
[319488329,1710800038329,-1096.76,0.00027123,2]
[319488330,1710800038339,-1579.95,0.00027123,2]
[319488331,1710800038348,-1153.52,0.00027123,2]
[319488332,1710800038358,-1079.02,0.00027123,2]
[319488333,1710800038368,-500.0,0.00027123,2]
[319488334,1710800038378,-604.92,0.00027123,2]
[319488335,1710800038388,-2112.17,0.00027123,2]
[319488336,1710800038397,-788.06,0.00027123,2]
[319488337,1710800038407,-965.6,0.00027123,2]
[319488338,1710800038417,-567.24,0.00027123,2]
[319488339,1710800038427,-1057.53,0.00027123,2]
[319488340,1710800038437,-1346.77,0.00027123,2]
[319488341,1710800038446,-712.98,0.00027123,2]
[319488342,1710800038455,-624.81,0.00027123,2]
[319488343,1710800038464,-500.0,0.00027123,2]
[319488344,1710800038474,-750.79,0.00027123,2]
[319488345,1710800038484,-1820.6,0.00027123,2]
[319488346,1710800038493,-628.64,0.00027123,2]
[319488347,1710800038503,-787.89,0.00027123,2]
[319488348,1710800038513,-593.51,0.00027123,2]
[319488349,1710800038522,-750.42,0.00027123,2]
[319488350,1710800038532,-622.98,0.00027123,2]
[319488351,1710800038542,-1628.79,0.00027123,2]
[319488352,1710800038553,-3414.73,0.00027123,2]
[319488353,1710800038562,-830.73,0.00027123,2]
[319488354,1710800038572,-837.33,0.00027123,2]
[319488355,1710800038582,-1594.83,0.00027123,2]
[319488356,1710800038591,-1565.76,0.00027123,2]
[319488357,1710800038601,-2289.86,0.00027123,2]
[319488358,1710800038614,-2327.27,0.00027123,2]
[319488359,1710800038623,-1043.46,0.00027123,2]
[319488360,1710800038633,-1166.79,0.00027123,2]
[319488361,1710800038643,-549.91,0.00027123,2]
[319488362,1710800038653,-568.66,0.00027123,2]
[319488363,1710800038663,-771.19,0.00027123,2]
[319488364,1710800038672,-2753.66,0.00027123,2]
[319488365,1710800038682,-1513.08,0.00027123,2]
[319488366,1710800038692,-1842.48,0.00027123,2]
[319488367,1710800038701,-1460.74,0.00027123,2]
[319488368,1710800038711,-942.07,0.00027123,2]
[319488369,1710800038720,-895.46,0.00027123,2]
[319488370,1710800038729,-1989.79,0.00027123,2]
[319488371,1710800038739,-1990.34,0.00027123,2]
[319488372,1710800038748,-546.17191224,0.00027123,2]
[319488373,1710800038758,-594.54,0.00027123,2]
[319488374,1710800038767,-570.11,0.00027123,2]
[319488375,1710800038776,-2010.18,0.00027123,2]
[319488376,1710800038785,-1089.38,0.00027123,2]
[319488377,1710800038794,-1225.65,0.00027123,2]
[319488378,1710800038804,-705.19,0.00027123,2]
[319488379,1710800038813,-2976.15,0.00027123,2]
[319488380,1710800038822,-508.99,0.00027123,2]
[319488381,1710800038832,-501.15,0.00027123,2]
[319488382,1710800038841,-1173.9,0.00027123,2]
[319488383,1710800038851,-1787.1,0.00027123,2]
[319488384,1710800038861,-1969.89,0.00027123,2]
[319488385,1710800038871,-551.56,0.00027123,2]
[319488386,1710800038881,-634.39,0.00027123,2]
[319488387,1710800038891,-515.85,0.00027123,2]
[319488388,1710800038900,-1763.14,0.00027123,2]
[319488389,1710800038910,-500.0,0.00027123,2]
[319488390,1710800038919,-1610.23,0.00027123,2]
[319488391,1710800038928,-698.44,0.00027123,2]
[319488392,1710800038938,-757.78,0.00027123,2]
[319488393,1710800038948,-1107.01,0.00027123,2]
[319488394,1710800038958,-3621.53,0.00027123,2]
[319488395,1710800038967,-3272.98,0.00027123,2]
[319488396,1710800038977,-500.0,0.00027123,2]
[319488397,1710800038986,-617.42,0.00027123,2]
[319488398,1710800038995,-500.0,0.00027123,2]
[319488399,1710800039006,-833.03,0.00027123,2]
[319488400,1710800039015,-2995.13,0.00027123,2]
[319488401,1710800039027,-500.0,0.00027123,2]
[319488402,1710800039036,-1059.1,0.00027123,2]
[319488403,1710800039046,-2205.14,0.00027123,2]
[319488404,1710800039190,-1379.17,0.00027123,2]
[319488405,1710800039200,-1296.97,0.00027123,2]
[319488406,1710800039209,-684.91,0.00027123,2]
[319488407,1710800039219,-1167.23,0.00027123,2]
[319488408,1710800039229,-1111.67,0.00027123,2]
[319488409,1710800039238,-1840.74,0.00027123,2]
[319488410,1710800039247,-1159.15,0.00027123,2]
[319488411,1710800039257,-1071.26,0.00027123,2]
[319488412,1710800039267,-732.2,0.00027123,2]
[319488413,1710800039276,-2487.12,0.00027123,2]
[319488414,1710800039285,-1409.81,0.00027123,2]
[319488415,1710800039294,-2258.29,0.00027123,2]
[319488416,1710800039303,-885.61,0.00027123,2]
[319488417,1710800039312,-728.7,0.00027123,2]
[319488418,1710800039322,-981.29,0.00027123,2]
[319488419,1710800039331,-619.02,0.00027123,2]
[319488420,1710800039340,-3027.38,0.00027123,2]
[319488421,1710800039349,-2230.77,0.00027123,2]
[319488422,1710800039358,-2148.85,0.00027123,2]
[319488423,1710800039367,-847.31,0.00027123,2]
[319488424,1710800039377,-500.0,0.00027123,2]
[319488425,1710800039387,-1040.92,0.00027123,2]
[319488426,1710800039396,-1016.05,0.00027123,2]
[319488427,1710800039406,-625.78,0.00027123,2]
[319488428,1710800039415,-1988.29,0.00027123,2]
[319488429,1710800039425,-673.87,0.00027123,2]
[319488430,1710800039434,-803.43,0.00027123,2]
[319488431,1710800039444,-2712.0,0.00027123,2]
[319488432,1710800039454,-618.27,0.00027123,2]
[319488433,1710800039464,-925.33,0.00027123,2]
[319488434,1710800039473,-1492.36,0.00027123,2]
[319488435,1710800039483,-1934.24,0.00027123,2]
[319488436,1710800039492,-500.0,0.00027123,2]
[319488437,1710800039502,-1347.96,0.00027123,2]
[319488438,1710800039511,-618.35,0.00027123,2]
[319488439,1710800039521,-3249.34,0.00027123,2]
[319488440,1710800039531,-736.87,0.00027123,2]
[319488441,1710800039540,-1048.99,0.00027123,2]
[319488442,1710800039550,-695.99,0.00027123,2]
[319488443,1710800039559,-1686.42,0.00027123,2]
[319488444,1710800039569,-500.0,0.00027123,2]
[319488445,1710800039578,-2027.85,0.00027123,2]
[319488446,1710800039587,-3300.65,0.00027123,2]
[319488447,1710800039597,-1879.8,0.00027123,2]
[319488448,1710800039608,-600.13,0.00027123,2]
[319488449,1710800039618,-689.62,0.00027123,2]
[319488450,1710800039628,-3602.93,0.00027123,2]
[319488451,1710800039638,-500.0,0.00027123,2]
[319488452,1710800039648,-839.53,0.00027123,2]
[319488453,1710800039658,-734.91,0.00027123,2]
[319488454,1710800039668,-1753.56,0.00027123,2]
[319488455,1710800039677,-839.74,0.00027123,2]
[319488456,1710800039688,-500.0,0.00027123,2]
[319488457,1710800039697,-4941.23,0.00027123,2]
[319488458,1710800039707,-924.55,0.00027123,2]
[319488459,1710800039716,-646.58,0.00027123,2]
[319488460,1710800039726,-1444.11,0.00027123,2]
[319488461,1710800039735,-1862.07,0.00027123,2]
[319488462,1710800039745,-2596.77,0.00027123,2]
[319488463,1710800039756,-1913.61,0.00027123,2]
[319488464,1710800039766,-600.66,0.00027123,2]
[319488465,1710800039775,-1169.17,0.00027123,2]
[319488466,1710800039784,-501.0,0.00027123,2]
[319488467,1710800039794,-671.74,0.00027123,2]
[319488468,1710800039803,-500.0,0.00027123,2]
[319488469,1710800039813,-660.79,0.00027123,2]
[319488470,1710800039822,-4429.56,0.00027123,2]
[319488471,1710800039831,-645.13,0.00027123,2]
[319488472,1710800039840,-1387.34,0.00027123,2]
[319488473,1710800039850,-1092.65,0.00027123,2]
[319488474,1710800039859,-775.21,0.00027123,2]
[319488475,1710800039869,-1234.18,0.00027123,2]
[319488476,1710800039878,-1640.92,0.00027123,2]
[319488477,1710800039887,-660.8,0.00027123,2]
[319488478,1710800039897,-618.02,0.00027123,2]
[319488479,1710800039906,-500.0,0.00027123,2]
[319488480,1710800039916,-2991.4,0.00027123,2]
[319488481,1710800039926,-526.67,0.00027123,2]
[319488482,1710800039936,-520.66,0.00027123,2]
[319488483,1710800039945,-3432.69,0.00027123,2]
[319488484,1710800039955,-2512.6,0.00027123,2]
[319488485,1710800039964,-929.21,0.00027123,2]
[319488486,1710800039973,-553.17,0.00027123,2]
[319488487,1710800039982,-632.91,0.00027123,2]
[319488488,1710800039991,-587.03,0.00027123,2]
[319488489,1710800040000,-500.0,0.00027123,2]
[319488490,1710800040012,-500.0,0.00027123,2]
[319488491,1710800040021,-1670.28,0.00027123,2]
[319488492,1710800040031,-1508.72,0.00027123,2]
[319488493,1710800040040,-500.0,0.00027123,2]
[319488494,1710800040050,-588.94,0.00027123,2]
[319488495,1710800040059,-2672.81,0.00027123,2]
[319488496,1710800040069,-992.88,0.00027123,2]
[319488497,1710800040078,-1421.34,0.00027123,2]
[319488498,1710800040087,-1479.34,0.00027123,2]
[319488499,1710800040096,-778.13,0.00027123,2]
[319488500,1710800040105,-549.69,0.00027123,2]
[319488501,1710800040114,-1591.7,0.00027123,2]
[319488502,1710800040123,-1096.72,0.00027123,2]
[319488503,1710800040133,-2210.21,0.00027123,2]
[319488504,1710800040142,-1855.24,0.00027123,2]
[319488505,1710800040151,-1747.53,0.00027123,2]
[319488506,1710800040160,-869.7,0.00027123,2]
[319488507,1710800040169,-680.92,0.00027123,2]
[319488508,1710800040178,-665.42,0.00027123,2]
[319488509,1710800040187,-1181.58,0.00027123,2]
[319488510,1710800040197,-1501.92,0.00027123,2]
[319488511,1710800040206,-2323.42,0.00027123,2]
[319488512,1710800040215,-2355.45,0.00027123,2]
[319488513,1710800040225,-2348.13,0.00027123,2]
[319488514,1710800040234,-1841.43,0.00027123,2]
[319488515,1710800040243,-633.95,0.00027123,2]
[319488516,1710800040255,-2789.32,0.00027123,2]
[319488517,1710800040265,-1047.26,0.00027123,2]
[319488518,1710800040274,-506.7,0.00027123,2]
[319488519,1710800040284,-346.99256965,0.00027123,2]
[319488520,1710800040294,-2028.96,0.00027123,2]
[319488521,1710800040303,-1121.74,0.00027123,2]
[319488522,1710800040313,-727.29,0.00027123,2]
[319488523,1710800040323,-1964.52,0.00027123,2]
[319488524,1710800040332,-800.57,0.00027123,2]
[319488525,1710800040341,-500.0,0.00027123,2]
[319488526,1710800040351,-855.83,0.00027123,2]
[319488527,1710800040359,-515.18,0.00027123,2]
[319488528,1710800040369,-805.44,0.00027123,2]
[319488529,1710800040378,-1465.25,0.00027123,2]
[319488530,1710800040388,-703.59,0.00027123,2]
[319488531,1710800040397,-1137.55,0.00027123,2]
[319488532,1710800040407,-1372.51,0.00027123,2]
[319488533,1710800040416,-1311.42,0.00027123,2]
[319488534,1710800040426,-890.31,0.00027123,2]
[319488535,1710800040435,-693.23,0.00027123,2]
[319488536,1710800040445,-606.63,0.00027123,2]
[319488537,1710800040455,-1355.8,0.00027123,2]
[319488538,1710800040464,-633.23,0.00027123,2]
[319488539,1710800040474,-931.19,0.00027123,2]
[319488540,1710800040483,-1311.22,0.00027123,2]
[319488541,1710800040493,-560.88,0.00027123,2]
[319488542,1710800040505,-578.22,0.00027123,2]
[319488543,1710800040515,-931.2,0.00027123,2]
[319488544,1710800040524,-1373.23,0.00027123,2]
[319488545,1710800040534,-1189.08,0.00027123,2]
[319488546,1710800040543,-500.0,0.00027123,2]
[319488547,1710800040553,-582.88,0.00027123,2]
[319488548,1710800040563,-807.67,0.00027123,2]
[319488549,1710800040572,-500.0,0.00027123,2]
[319488550,1710800040582,-500.0,0.00027123,2]
[319488551,1710800040592,-1318.07,0.00027123,2]
[319488552,1710800040602,-2537.59,0.00027123,2]
[319488553,1710800040613,-1833.13,0.00027123,2]
[319488554,1710800040623,-584.63,0.00027123,2]
[319488555,1710800040633,-922.71,0.00027123,2]
[319488556,1710800040643,-522.08,0.00027123,2]
[319488557,1710800040653,-1186.68,0.00027123,2]
[319488558,1710800040663,-667.48,0.00027123,2]
[319488559,1710800040673,-998.55,0.00027123,2]
[319488560,1710800040682,-1847.99,0.00027123,2]
[319488561,1710800040692,-797.09,0.00027123,2]
[319488562,1710800040702,-1079.26,0.00027123,2]
[319488563,1710800040712,-1856.02,0.00027123,2]
[319488564,1710800040722,-1186.25,0.00027123,2]
[319488565,1710800040731,-897.94,0.00027123,2]
[319488566,1710800040740,-1418.3,0.00027123,2]
[319488567,1710800040750,-844.5,0.00027123,2]
[319488568,1710800040763,-1228.33,0.00027123,2]
[319488569,1710800040773,-656.86,0.00027123,2]
[319488570,1710800040782,-1254.05,0.00027123,2]
[319488571,1710800040791,-1220.28,0.00027123,2]
[319488572,1710800040800,-524.26,0.00027123,2]
[319488573,1710800040810,-544.86,0.00027123,2]
[319488574,1710800040819,-1112.38,0.00027123,2]
[319488575,1710800040828,-990.25,0.00027123,2]
[319488576,1710800040837,-1554.62,0.00027123,2]
[319488577,1710800040846,-615.98,0.00027123,2]
[319488578,1710800040855,-1046.24,0.00027123,2]
[319488579,1710800040864,-525.88,0.00027123,2]
[319488580,1710800040873,-1155.33,0.00027123,2]
[319488581,1710800040882,-527.83,0.00027123,2]
[319488582,1710800040891,-500.0,0.00027123,2]
[319488583,1710800040900,-3244.32,0.00027123,2]
[319488584,1710800040909,-1017.43,0.00027123,2]
[319488585,1710800040918,-1754.86,0.00027123,2]
[319488586,1710800040928,-1859.5,0.00027123,2]
[319488587,1710800040936,-1204.75,0.00027123,2]
[319488588,1710800040946,-721.17,0.00027123,2]
[319488589,1710800040955,-1304.47,0.00027123,2]
[319488590,1710800040964,-1387.32,0.00027123,2]
[319488591,1710800040974,-1084.75,0.00027123,2]
[319488592,1710800040983,-984.35,0.00027123,2]
[319488593,1710800040992,-223.81869449,0.00027123,2]
[319488594,1710800041001,-1042.11,0.00027123,2]
[319488595,1710800041012,-550.03,0.00027123,2]
[319488596,1710800041022,-3263.23,0.00027123,2]
[319488597,1710800041031,-1980.05,0.00027123,2]
[319488598,1710800041040,-1006.81,0.00027123,2]
[319488599,1710800041049,-1334.24,0.00027123,2]
[319488600,1710800041058,-772.45,0.00027123,2]
[319488601,1710800041067,-879.01,0.00027123,2]
[319488602,1710800041076,-577.06,0.00027123,2]
[319488603,1710800041085,-1289.15,0.00027123,2]
[319488604,1710800041094,-1162.86,0.00027123,2]
[319488605,1710800041103,-500.0,0.00027123,2]
[319488606,1710800041113,-539.59,0.00027123,2]
[319488607,1710800041122,-1284.59,0.00027123,2]
[319488608,1710800041131,-1343.86,0.00027123,2]
[319488609,1710800041140,-2423.47,0.00027123,2]
[319488610,1710800041149,-790.0,0.00027123,2]
[319488611,1710800041158,-1561.78,0.00027123,2]
[319488612,1710800041167,-2345.93,0.00027123,2]
[319488613,1710800041176,-1543.03,0.00027123,2]
[319488614,1710800041185,-688.89,0.00027123,2]
[319488615,1710800041194,-779.42,0.00027123,2]
[319488616,1710800041203,-500.0,0.00027123,2]
[319488617,1710800041212,-1455.91,0.00027123,2]
[319488618,1710800041223,-964.51,0.00027123,2]
[319488619,1710800041232,-865.84,0.00027123,2]
[319488620,1710800041242,-1604.71,0.00027123,2]
[319488621,1710800041251,-1347.47,0.00027123,2]
[319488622,1710800041262,-1883.82,0.00027123,2]
[319488623,1710800041272,-500.0,0.00027123,2]
[319488624,1710800041281,-615.15,0.00027123,2]
[319488625,1710800041290,-743.05,0.00027123,2]
[319488626,1710800041299,-1288.43,0.00027123,2]
[319488627,1710800041308,-532.05,0.00027123,2]
[319488628,1710800041317,-1050.86,0.00027123,2]
[319488629,1710800041326,-568.35,0.00027123,2]
[319488630,1710800041749,-801.95,0.00027123,2]
[319488631,1710800041763,-3692.13,0.00027123,2]
[319488632,1710800041773,-1021.88,0.00027123,2]
[319488633,1710800041782,-1387.79,0.00027123,2]
[319488634,1710800041791,-1736.34,0.00027123,2]
[319488635,1710800041800,-722.05,0.00027123,2]
[319488636,1710800041809,-2682.4,0.00027123,2]
[319488637,1710800041819,-917.72,0.00027123,2]
[319488638,1710800041828,-1582.16,0.00027123,2]
[319488639,1710800041837,-195.51617966,0.00027123,2]
[319488640,1710800041847,-899.67,0.00027123,2]
[319488641,1710800041857,-1197.99,0.00027123,2]
[319488642,1710800041867,-2570.57,0.00027123,2]
[319488643,1710800041876,-832.49,0.00027123,2]
[319488644,1710800041886,-2336.68,0.00027123,2]
[319488645,1710800041895,-714.57,0.00027123,2]
[319488646,1710800041905,-572.14,0.00027123,2]
[319488647,1710800041914,-570.84,0.00027123,2]
[319488648,1710800041924,-1267.22,0.00027123,2]
[319488649,1710800041933,-1986.27,0.00027123,2]
[319488650,1710800041942,-1031.5,0.00027123,2]
[319488651,1710800041952,-1487.73,0.00027123,2]
[319488652,1710800041961,-713.53,0.00027123,2]
[319488653,1710800041970,-1462.06,0.00027123,2]
[319488654,1710800041979,-662.67,0.00027123,2]
[319488655,1710800041988,-1113.91,0.00027123,2]
[319488656,1710800041998,-1374.98,0.00027123,2]
[319488657,1710800042008,-2453.88,0.00027123,2]
[319488658,1710800042017,-584.72,0.00027123,2]
[319488659,1710800042027,-2831.64,0.00027123,2]
[319488660,1710800042037,-1349.99,0.00027123,2]
[319488661,1710800042046,-1466.21,0.00027123,2]
[319488662,1710800042055,-1118.72,0.00027123,2]
[319488663,1710800042064,-606.91,0.00027123,2]
[319488664,1710800042074,-295.08310425,0.00027123,2]
[319488665,1710800042083,-1958.41,0.00027123,2]
[319488666,1710800042092,-1580.15,0.00027123,2]
[319488667,1710800042101,-605.4,0.00027123,2]
[319488668,1710800042111,-500.0,0.00027123,2]
[319488669,1710800042120,-634.22436569,0.00027123,2]
[319488670,1710800042129,-942.42,0.00027123,2]
[319488671,1710800042138,-633.32146026,0.00027123,2]
[319488672,1710800042147,-569.15,0.00027123,2]
[319488673,1710800042157,-1400.41,0.00027123,2]
[319488674,1710800042166,-941.12,0.00027123,2]
[319488675,1710800042176,-303.5719395,0.00027123,2]
[319488676,1710800042185,-1781.44,0.00027123,2]
[319488677,1710800042195,-1912.95,0.00027123,2]
[319488678,1710800042204,-713.68,0.00027123,2]
[319488679,1710800042213,-1203.57,0.00027123,2]
[319488680,1710800042223,-905.72,0.00027123,2]
[319488681,1710800042232,-180.58778832,0.00027123,2]
[319488682,1710800042242,-4393.41,0.00027123,2]
[319488683,1710800042251,-2303.75,0.00027123,2]
[319488684,1710800042261,-1144.14,0.00027123,2]
[319488685,1710800042270,-1229.49,0.00027123,2]
[319488686,1710800042279,-511.29,0.00027123,2]
[319488687,1710800042288,-1401.22,0.00027123,2]
[319488688,1710800042297,-500.0,0.00027123,2]
[319488689,1710800042306,-1432.28,0.00027123,2]
[319488690,1710800042315,-516.82,0.00027123,2]
[319488691,1710800042325,-377.29487824,0.00027123,2]
[319488692,1710800042334,-1305.33,0.00027123,2]
[319488693,1710800042343,-678.53,0.00027123,2]
[319488694,1710800042352,-581.47,0.00027123,2]
[319488695,1710800042361,-737.52,0.00027123,2]
[319488696,1710800042371,-1022.21,0.00027123,2]
[319488697,1710800042380,-1654.91,0.00027123,2]
[319488698,1710800042390,-745.31,0.00027123,2]
[319488699,1710800042399,-7202.93,0.00027123,2]
[319488700,1710800042409,-20689.66,0.00027123,2]
[319488701,1710800042421,-2992.02,0.00027123,2]
[319488702,1710800042431,-638.22,0.00027123,2]
[319488703,1710800042441,-1088.66,0.00027123,2]
[319488704,1710800042450,-1110.24,0.00027123,2]
[319488705,1710800042459,-1157.8,0.00027123,2]
[319488706,1710800042469,-1090.38,0.00027123,2]
[319488707,1710800042478,-1367.92,0.00027123,2]
[319488708,1710800042488,-1716.46,0.00027123,2]
[319488709,1710800042498,-605.07,0.00027123,2]
[319488710,1710800042508,-622.92,0.00027123,2]
[319488711,1710800042518,-8212.3,0.00027123,2]
[319488712,1710800042527,-738.47,0.00027123,2]
[319488713,1710800042537,-6843.13,0.00027123,2]
[319488714,1710800042549,-2375.9,0.00027123,2]
[319488715,1710800042559,-1814.94,0.00027123,2]
[319488716,1710800042569,-1412.21,0.00027123,2]
[319488717,1710800042579,-642.05,0.00027123,2]
[319488718,1710800042588,-720.26,0.00027123,2]
[319488719,1710800042598,-2621.03,0.00027123,2]
[319488720,1710800042609,-7701.15,0.00027123,2]
[319488721,1710800042619,-867.51,0.00027123,2]
[319488722,1710800042628,-70618.05,0.00027123,2]
[319488723,1710800042638,-1283.55,0.00027123,2]
[319488724,1710800042647,-933.88,0.00027123,2]
[319488725,1710800042657,-651.4,0.00027123,2]
[319488726,1710800042667,-1968.24,0.00027123,2]
[319488727,1710800042676,-1507.28,0.00027123,2]
[319488728,1710800042686,-500.0,0.00027123,2]
[319488729,1710800042695,-2930.24,0.00027123,2]
[319488730,1710800042705,-908.19,0.00027123,2]
[319488731,1710800042714,-15625.12,0.00027123,2]
[319488732,1710800042723,-836.99,0.00027123,2]
[319488733,1710800042733,-1649.1,0.00027123,2]
[319488734,1710800042743,-386.07,0.00027123,2]
[319488735,1710800042752,-1000.59,0.00027123,2]
[319488736,1710800042762,-3638.93,0.00027123,2]
[319488737,1710800042771,-500.0,0.00027123,2]
[319488738,1710800042781,-2240.25,0.00027123,2]
[319488739,1710800042790,-1827.91,0.00027123,2]
[319488740,1710800042799,-876.56,0.00027123,2]
[319488741,1710800042809,-2226.67,0.00027123,2]
[319488742,1710800042819,-3729.26,0.00027123,2]
[319488743,1710800042828,-552.47800924,0.00027123,2]
[319488744,1710800042837,-500.0,0.00027123,2]
[319488745,1710800042847,-3606.56,0.00027123,2]
[319488746,1710800042856,-1207.02,0.00027123,2]
[319488747,1710800042867,-963.32,0.00027123,2]
[319488748,1710800042877,-28470.72,0.00027123,2]
[319488749,1710800042886,-2980.27,0.00027123,2]
[319488750,1710800042895,-500.0,0.00027123,2]
[319488751,1710800042905,-500.0,0.00027123,2]
[319488752,1710800042915,-1014.54,0.00027123,2]
[319488753,1710800042925,-1007.55,0.00027123,2]
[319488754,1710800042934,-500.0,0.00027123,2]
[319488755,1710800042943,-12991.16,0.00027123,2]
[319488756,1710800042952,-825.64,0.00027123,2]
[319488757,1710800042962,-500.0,0.00027123,2]
[319488758,1710800042971,-500.0,0.00027123,2]
[319488759,1710800042981,-1000.56,0.00027123,2]
[319488760,1710800042990,-1967.21,0.00027123,2]
[319488761,1710800042999,-989.42,0.00027123,2]
[319488762,1710800043010,-3061.78,0.00027123,2]
[319488763,1710800043020,-3350.06,0.00027123,2]
[319488764,1710800043029,-1418.83,0.00027123,2]
[319488765,1710800043038,-578.72,0.00027123,2]
[319488766,1710800043047,-558.83119813,0.00027123,2]
[319488767,1710800043056,-1283.92,0.00027123,2]
[319488768,1710800043066,-1017.47,0.00027123,2]
[319488769,1710800043075,-793.34,0.00027123,2]
[319488770,1710800043084,-500.0,0.00027123,2]
[319488771,1710800043093,-1383.54,0.00027123,2]
[319488772,1710800043103,-3058.85,0.00027123,2]
[319488773,1710800043112,-544.38,0.00027123,2]
[319488774,1710800043121,-4863.68,0.00027123,2]
[319488775,1710800043130,-3420.67,0.00027123,2]
[319488776,1710800043140,-1467.98,0.00027123,2]
[319488777,1710800043149,-909.74,0.00027123,2]
[319488778,1710800043158,-616.14,0.00027123,2]
[319488779,1710800043167,-500.0,0.00027123,2]
[319488780,1710800043176,-1391.49,0.00027123,2]
[319488781,1710800043186,-1472.05,0.00027123,2]
[319488782,1710800043195,-501.4,0.00027123,2]
[319488783,1710800043204,-1044.22,0.00027123,2]
[319488784,1710800043213,-736.5,0.00027123,2]
[319488785,1710800043222,-1726.54,0.00027123,2]
[319488786,1710800043232,-1026.28,0.00027123,2]
[319488787,1710800043242,-2302.64,0.00027123,2]
[319488788,1710800043252,-1165.44,0.00027123,2]
[319488789,1710800043262,-12189.86,0.00027123,2]
[319488790,1710800043271,-1375.05,0.00027123,2]
[319488791,1710800043280,-1316.33,0.00027123,2]
[319488792,1710800043289,-515.52,0.00027123,2]
[319488793,1710800043298,-1294.68,0.00027123,2]
[319488794,1710800043307,-1545.51,0.00027123,2]
[319488795,1710800043317,-1925.65,0.00027123,2]
[319488796,1710800043326,-728.8,0.00027123,2]
[319488797,1710800043336,-1530.51,0.00027123,2]
[319488798,1710800043345,-6062.83,0.00027123,2]
[319488799,1710800043355,-1677.75,0.00027123,2]
[319488800,1710800043364,-500.0,0.00027123,2]
[319488801,1710800043373,-630.76,0.00027123,2]
[319488802,1710800043383,-697.84,0.00027123,2]
[319488803,1710800043392,-1154.87,0.00027123,2]
[319488804,1710800043402,-1111.24,0.00027123,2]